Cogmind - Beta 13 @@@ ROGUE MODE // 2024.03.31 @ 23:48:35 Player: oberon720 Result: Destroyed by D-53 Grenadier with Mini Grenade Launcher Performance ------------- Evolutions (0) 0 Regions Visited (4) 800 Robots Destroyed (2) 10 Value Destroyed (81) 81 Prototype IDs (3) 60 Alien Tech Used (0) 0 Bonus (300) 300 TOTAL SCORE: 1251 Bonus ------- Aligned with FarCom 300 Cogmind --------- Core Integrity 0/250 Matter 209/300 Energy 100/100 System Corruption 0% Temperature Cool (0) Movement Core (50) Location -9/Mines Parts ------- > --- POWER (1) -------- (None) > --- PROPULSION (2) --- (None) > --- UTILITY (2) ------ (None) > --- WEAPON (2) ------- (None) > --- INVENTORY (5) ---- Superbattery (1500) ECM Suite Core Shielding YOLO Cannon Peak State ------------ > --- POWER ------------ Light Nuclear Core > --- PROPULSION ------- Light Treads Light Treads > --- UTILITY ---------- Superbattery ECM Suite > --- WEAPON ----------- YOLO Cannon > --- INVENTORY -------- ECM Suite ECM Suite Core Shielding [Rating: 36] Favorites ----------- Power Light Nuclear Core Engine Ion Engine Power Core Light Nuclear Core Propulsion Light Treads Treads Light Treads Utility Humpback Device ECM Suite Storage Humpback Protection Core Shielding Weapon YOLO Cannon Energy Cannon YOLO Cannon Ballistic Gun Light Assault Rifle Ballistic Cannon Battle Cannon Build | -11 -10 -10 -10 -9 ------- Run | Yrd Mat Min Exi Min Slots Evolved . | . . . . . Power . | . . . . . Propulsion . | . . . . . Utility . | . . . . . Weapon . | . . . . . Parts Attached 18 | 6 3 2 5 2 Power 2 | 1 . 1 . . Engine 1 | 1 . . . . Core 1 | . . 1 . . Reactor . | . . . . . Propulsion 2 | 2 . . . . Treads 2 | 2 . . . . Leg . | . . . . . Wheel . | . . . . . Hover . | . . . . . Flight . | . . . . . Utility 8 | 1 3 . 4 . Device 4 | . 2 . 2 . Storage 3 | 1 . . 2 . Processor . | . . . . . Hackware . | . . . . . Protection 1 | . 1 . . . Artifact . | . . . . . Weapon 6 | 2 . 1 1 2 Energy Gun . | . . . . . Energy Cannon 1 | . . . 1 . Ballistic Gun 3 | 2 . . . 1 Ballistic Cannon 2 | . . 1 . 1 Launcher . | . . . . . Special Weapon . | . . . . . Impact Weapon . | . . . . . Slashing Weapon . | . . . . . Piercing Weapon . | . . . . . Special Melee Weapon . | . . . . . Unidentified Prototypes 3 | . . . 3 . Parts Lost 6 | . . . . 6 Power 1 | . . . . 1 Propulsion 2 | . . . . 2 Utility 1 | . . . . 1 Weapon 2 | . . . . 2 Highest Loss Streak 6 | . . . . 6 To Critical Strikes . | . . . . . Average Slot Usage (%) 80 | . 97 100 85 71 Engine 1 | . 14 1 . . Core 12 | . . 12 14 13 Treads 27 | . 28 28 28 27 Device 8 | . 4 28 14 . Storage 10 | . 11 . 9 14 Energy Cannon 9 | . . . 9 13 Ballistic Gun 7 | . 28 26 4 . Ballistic Cannon 1 | . . 1 4 . Naked Turns 4 | . . . . 4 Heaviest Build 223 | 12 14 13 223 223 Greatest Support 40 | 40 40 40 40 40 Greatest Overweight (x) 66 | . . . 5 66 Average Overweight (x) 1 | . . . . 5 Largest Inventory Capacity 35 | 8 8 5 35 35 Average Capacity 23 | 6 7 5 13 34 Most Carried 9 | 4 5 5 7 9 Average Carried 5 | . 1 4 4 6 Final Capacity 35 | 8 5 5 35 5 Final Carried 7 | 1 5 4 7 5 Class Distribution -------------------- 61% | Hauler-Mutant 38% | Mutant Dominant Class ---------------- Mutant | -10/Materials Mutant | -10/Mines Mutant | -10/Exiles Hauler-Mutant | -9/Mines Resources | -11 -10 -10 -10 -9 ----------- Run | Yrd Mat Min Exi Min Matter Collected 365 | 247 . 75 . 43 Remotely . | . . . . . Salvage Created 118 | . . 95 . 23 Parts 6 | . . 6 . . Haulers Intercepted . | . . . . . Recyclers Shooed . | . . . . . Parts Field Recycled . | . . . . . Retrieved Matter . | . . . . . Parts Self-Destructed . | . . . . . Prevented . | . . . . . Kills | -11 -10 -10 -10 -9 ------- Run | Yrd Mat Min Exi Min Combat Hostiles Destroyed 6 | . . 2 . 4 Guns 2 | . . 2 . . Cannons 4 | . . . . 4 Classes Destroyed 2 | . . 1 . 1 Grunt 2 | . . 2 . . Assembled 4 | . . . . 4 Best Kill Streak 4 | . . 2 . 4 Combat Bots Only 4 | . . 2 . 4 Max Kills in Single Turn 1 | . . 1 . 1 Gunslinging . | . . . . . Exploded . | . . . . . Melee . | . . . . . Uniques/NPCs Destroyed . | . . . . . Combat | -11 -10 -10 -10 -9 -------- Run | Yrd Mat Min Exi Min Hostile Shots Fired 83 | . . 23 . 60 Missed 21 | . . 8 . 13 Damage Taken 1280 | . . 210 . 1070 Core 264 | . . 34 . 230 Absorbed by Shields . | . . . . . Core Remaining (%) 100 | 100 . . . . Volleys Fired 25 | . 1 10 . 14 Largest 2 | . 2 2 . 2 Hottest 59 | . 40 40 . 59 Shots Fired 50 | . 2 20 . 28 Gun 36 | . 2 20 . 14 Cannon 14 | . . . . 14 Launcher . | . . . . . Special . | . . . . . Kinetic 50 | . 2 20 . 28 Thermal . | . . . . . Explosive . | . . . . . Electromagnetic . | . . . . . Robot Hit Streak 5 | . 2 5 . 5 Robot Miss Streak 4 | . . 2 . 4 Penetration Max . | . . . . . Secondary Targets . | . . . . . Shots Hit Robots 30 | . 2 13 . 15 Core Hits 14 | . 1 7 . 6 Critical Kills . | . . . . . Critical Parts Destroyed . | . . . . . Critical Strikes 1 | . . . . 1 Blast 1 | . . . . 1 Melee Attacks . | . . . . . Impact . | . . . . . Slashing . | . . . . . Piercing . | . . . . . Sneak Attacks . | . . . . . Combat Hostiles . | . . . . . Follow-up Attacks . | . . . . . Damage Inflicted 374 | . 17 107 . 250 Guns 181 | . 17 106 . 58 Cannons 192 | . . . . 192 Explosions . | . . . . . Melee . | . . . . . Ramming 1 | . . 1 . . Kinetic 373 | . 17 106 . 250 Thermal . | . . . . . Explosive . | . . . . . Electromagnetic . | . . . . . Impact . | . . . . . Slashing . | . . . . . Piercing . | . . . . . Highest Corruption . | . . . . . Average Corruption . | . . . . . Corruption Purged . | . . . . . Corruption Blocked . | . . . . . Overload Shots . | . . . . . Overflow Damage 9 | . . . . 9 Projectiles 9 | . . . . 9 Explosions . | . . . . . Melee . | . . . . . Knockbacks . | . . . . . Impact . | . . . . . Kinetic . | . . . . . Secondary . | . . . . . Self-Inflicted Damage . | . . . . . Shots . | . . . . . Rammed 1 | . . 1 . . Targets Rammed 1 | . . 1 . . Kicked . | . . . . . Crushed . | . . . . . Highest Temperature 102 | . . 18 . 102 Average Temperature 34 | . . 10 . 44 Received Heat Transfer 180 | . . 120 . 60 Siege Activations . | . . . . . Robots Corrupted . | . . . . . Combat Hostiles . | . . . . . Parts Fried . | . . . . . Impact Corruptions . | . . . . . Robots Melted . | . . . . . Combat Hostiles . | . . . . . Parts Melted . | . . . . . Heat Transferred . | . . . . . Parts Sabotaged . | . . . . . Parts Stolen . | . . . . . Parts Stripped . | . . . . . Power Chain Reactions . | . . . . . Alert | -11 -10 -10 -10 -9 ------- Run | Yrd Mat Min Exi Min Peak Influence 55 | . 15 55 . 1 Initial 5 | . . 5 . . Average 6 | . 7 24 . . Maximum Alert Level . | . . . . . Low Security (%) 100 | 100 100 100 . 100 Level 1 . | . . . . . Level 2 . | . . . . . Level 3 . | . . . . . Level 4 . | . . . . . Level 5 . | . . . . . High Security . | . . . . . Max Security . | . . . . . Squads Dispatched 2 | . 2 . . . Investigation 1 | . 1 . . . Extermination . | . . . . . Reinforcement 1 | . 1 . . . Assault . | . . . . . Garrison . | . . . . . Intercept . | . . . . . Searches Triggered . | . . . . . Construction Impeded . | . . . . . Haulers Reinforced . | . . . . . Active Scanning Responses . | . . . . . Cargo Convoy Interrupts . | . . . . . Stealth | -11 -10 -10 -10 -9 --------- Run | Yrd Mat Min Exi Min Distress Signals . | . . . . . Communications Jammed . | . . . . . Distress Signals . | . . . . . Times Spotted 17 | . 1 5 . 11 Peak Tracking Total 9 | . 1 2 . 9 Tactical Retreats 2 | . . 2 . . Traps | -11 -10 -10 -10 -9 ------- Run | Yrd Mat Min Exi Min Traps Triggered . | . . . . . Indirectly . | . . . . . Trap Hack Attempts . | . . . . . Triggered . | . . . . . Disarmed . | . . . . . Reprogrammed . | . . . . . Reused . | . . . . . Traps Extracted . | . . . . . Installed . | . . . . . Triggered . | . . . . . Machines | -11 -10 -10 -10 -9 ---------- Run | Yrd Mat Min Exi Min Machines Disabled . | . . . . . Max in Single Turn . | . . . . . Machines Repaired . | . . . . . Machines Dismantled . | . . . . . Machines Sabotaged . | . . . . . Overloaded Fab Kills . | . . . . . Hacking | -11 -10 -10 -10 -9 --------- Run | Yrd Mat Min Exi Min Machines Accessed 2 | . 2 . . . Terminals 1 | . 1 . . . Fabricators . | . . . . . Repair Stations . | . . . . . Recycling Units 1 | . 1 . . . Scanalyzers . | . . . . . Garrison Access . | . . . . . Total Hacks 5 | . 5 . . . Successful 2 | . 2 . . . Failed 3 | . 3 . . . Catastrophic . | . . . . . Database Lockouts . | . . . . . Manual 1 | . . . 1 . Terminals 2 | . 2 . . . Fabricators . | . . . . . Repair Stations . | . . . . . Recycling Units 3 | . 3 . . . Scanalyzers . | . . . . . Garrison Access . | . . . . . Terminal Hacks 1 | . 1 . . . Record 1 | . 1 . . . Fabricator Hacks . | . . . . . Repair Station Hacks . | . . . . . Recycling Unit Hacks 1 | . 1 . . . Retrieve Components 1 | . 1 . . . Scanalyzer . | . . . . . Garrison Access Hacks . | . . . . . Unauthorized Hacks . | . . . . . Terminals . | . . . . . Fabricators . | . . . . . Repair Stations . | . . . . . Recycling Units . | . . . . . Scanalyzers . | . . . . . Garrison Access . | . . . . . Data Cores Recovered . | . . . . . Used . | . . . . . Hacking Detections 2 | . 2 . . . Full Trace Events 1 | . 1 . . . Feedback Events . | . . . . . Feedback Blocked . | . . . . . Robot Schematics Acquired . | . . . . . Robots Built . | . . . . . Authchips . | . . . . . Time . | . . . . . Total Robot Build Rating . | . . . . . Part Schematics Acquired . | . . . . . Parts Built . | . . . . . Authchips . | . . . . . Time . | . . . . . Total Part Build Rating . | . . . . . Parts Repaired . | . . . . . Time . | . . . . . Parts Recycled . | . . . . . Recycled Matter . | . . . . . Retrieved Matter . | . . . . . Retrieved Components . | . . . . . Parts Scanalyzed . | . . . . . Part Schematics Acquired . | . . . . . Parts Damaged . | . . . . . Bothacking | -11 -10 -10 -10 -9 ------------ Run | Yrd Mat Min Exi Min Used RIF Installer . | . . . . . Robots Hacked . | . . . . . Non-combat . | . . . . . Combat . | . . . . . Robot Hacks Applied . | . . . . . Relay Couplers Released . | . . . . . Fabnet Peak Effective % . | . . . . . Robots Rewired . | . . . . . Allies Hacked . | . . . . . Hacks Repelled . | . . . . . Allies | -11 -10 -10 -10 -9 -------- Run | Yrd Mat Min Exi Min Total Allies . | . . . . . Largest Group . | . . . . . Highest-Rated Group . | . . . . . Highest-Rated Ally . | . . . . . Total Orders . | . . . . . Ally Attacks . | . . . . . Total Damage . | . . . . . Kills . | . . . . . Allies Corrupted . | . . . . . Allies Melted . | . . . . . Intel | -11 -10 -10 -10 -9 ------- Run | Yrd Mat Min Exi Min Robot Analysis Total . | . . . . . Derelict Logs Recovered 4 | . . 3 . 1 Drone Launches . | . . . . . Drone Recoveries . | . . . . . Exploration | -11 -10 -10 -10 -9 ------------- Run | Yrd Mat Min Exi Min Turns Passed 3956 | 74 198 758 671 2255 Spaces Moved 1125 | 42 116 453 243 271 Core 6 | 5 . . . 1 Treads 1119 | 37 116 453 243 270 Legs . | . . . . . Wheels . | . . . . . Hover . | . . . . . Flight . | . . . . . Fastest Speed 50 | 50 160 160 160 560 Average Speed 271 | 146 160 160 217 571 Slowest Speed 3350 | 160 160 160 560 3350 Overloaded Moves . | . . . . . Propulsion Burnouts . | . . . . . Robots Hopped . | . . . . . Cave-ins Triggered . | . . . . . Exploration Rate (%) 47 | 3 27 86 61 60 Regions Visited 4 Branch Regions 3 Pre-discovered Areas . | . . . . . Known Exits Taken . | . . . . . Unknown Exits Taken 4 | 1 1 1 1 . Scrap Searched 1 | . . 1 . . Spaces Dug . | . . . . . Terrain Destroyed 1 | . . . . 1 Melee . | . . . . . Projectile 1 | . . . . 1 AOE . | . . . . . Terrain Rammed . | . . . . . Walls Destroyed . | . . . . . Machines Disabled . | . . . . . Actions | -11 -10 -10 -10 -9 --------- Run | Yrd Mat Min Exi Min Total 2021 | 54 126 471 393 977 Wait 812 | . . . 123 689 Move 1121 | 41 115 452 242 271 Hop . | . . . . . Pick Up 26 | 7 6 2 11 . Fast Attach 2 | . . . 2 . Attach 10 | 6 1 . 1 2 Detach 1 | . . . . 1 Swap 6 | . 2 2 2 . Drop 17 | . 1 4 12 . Fire 25 | . 1 10 . 14 Melee . | . . . . . Ram . | . . . . . Kick . | . . . . . Crush 1 | . . 1 . . Escape Stasis . | . . . . . Rewire . | . . . . . Trap . | . . . . . Miscellaneous . | . . . . . Route ------- -11/Scrapyard -10/Materials -10/Mines (discovered 3 exits: *Mat x2 / *Exi) -10/Exiles -9/Mines (discovered 1 exit: [*Mat]) History --------- Turn | Location | Event 5 | -11/Scrapyard | Discovered new exit (range 16) 75 | -11/Scrapyard | Entered Materials 265 | -10/Materials | Discovered new exit (range 6) 273 | -10/Materials | Entered Mines 289 | -10/Mines | Met a Derelict bent on vengeance 308 | -10/Mines | Build established: Mutant 309 | -10/Mines | Learned location of 1 exit from Materials 404 | -10/Mines | Received a Rocket Launcher from a helpful Derelict 410 | -10/Mines | Learned location of 2 exits from Materials 423 | -10/Mines | Identified exit to Materials 681 | -10/Mines | Discovered exit to Materials (range 9) 956 | -10/Mines | A weapon hastily lodged in a ceiling crevice suddenly fell to the ground 1023 | -10/Mines | Deemed a non-threat by the Exiles lab entrance 1023 | -10/Mines | Discovered new exit (range 5) 1031 | -10/Mines | Entered Exiles 1077 | -10/Exiles | Met 8R-AWN 1106 | -10/Exiles | Met EX-HEX 1162 | -10/Exiles | Met EX-BIN 1181 | -10/Exiles | Aligned with FarCom system 1182 | -10/Exiles | Given EX-Vault access code 1219 | -10/Exiles | Opened EX-Vault 1229 | -10/Exiles | Found Prototype Storage 1230 | -10/Exiles | Identified Superbattery 1236 | -10/Exiles | Found Prototype Energy Cannon 1243 | -10/Exiles | Found Prototype Device 1244 | -10/Exiles | Identified Trap Reconfigurator 1250 | -10/Exiles | Identified YOLO Cannon 1286 | -10/Exiles | Warned to stay clear of 0b10 Research branches 1454 | -10/Exiles | Met EX-DEC 1629 | -10/Exiles | Discovered new exit (range 14) 1702 | -10/Exiles | Stole two prototypes: YOLO Cannon, Superbattery 1702 | -10/Exiles | Entered Mines 1814 | -9/Mines | Build established: Hauler-Mutant 2094 | -9/Mines | Found a hidden stash of uninstalled traps 2652 | -9/Mines | Learned Materials stockpile data 3842 | -9/Mines | Discovered new exit (range 10) 3854 | -9/Mines | Assembled infested the area 3951 | -9/Mines | Core integrity fell below 50% 3955 | -9/Mines | Core integrity fell below 20% 3957 | -9/Mines | Destroyed by D-53 Grenadier with Mini Grenade Launcher Last Messages --------------- U-05 Engineer lays Concrete. U-05 Engineer builds a Wall. EXIT=FOUND ALERT: Infestation in the mines, dispatching Demolisher response squad. U-05 Engineer destroyed. as-73951 destroyed. as-25229 destroyed. as-43810 destroyed. Destroyed Asb. Rifle. as-22873 suffers critical hit (Blast). as-22873 destroyed. Acquired 3 matter. Acquired 20 matter. Battle Cannon destroyed. Lgt. Treads destroyed. Lgt. Nuclear Core destroyed. R-06 Scavenger destroyed. Humpback destroyed. Lgt. Assault Rifle destroyed. The unstable cave ceiling collapses. Map ----- +----------------------------------------------------+ | | | ???????????????????????????????????????? | | ???????????????????????????????????????? | | ???????????????????????????????????????? | | ???????????????????????????????????????? | | ???????????????????????????????????????? | | ???????????????????????????????????????? | | ?????????????????????????? ????????????? | | ????????????????????????? ????????????? | | ????????????????????????? ????????????? | | ?????????????????????????% ????????????? | | ????????????????????????? ????????????? | | ????????????????????????# ????????????? | | ??????????????????????## ????????????? | | ??????????????????????# % #????????????? | | ??????????????????????#!<|#????????????? | | ?????????????????????## =d#????????????? | | ??????????????g?????## d #????????????? | | ????????????g???????# #????????????? | | ????????????????????# ##???????????? | | ????????????g???????# ##########??? | | ???????????????????## ## """ #??? | | ???????????????????# # # """ #??? | | ???????????????????# # # """ #??? | | ???????????????????# #??? | | ???????????????????# @ #??? | | ???????????????????# #??? | | ???????????????????## ## ###??? | | ????????????????????## ### #????? | | ?????????????????????## #????? | | ??????????????????????# ##########????? | | ??????????????????##### #?????????????? | | ??????????????????# #?????????????? | | ??????????????????# ######????????? | | ??????????????????# ###### ##???????? | | ?# #?????????????# #?## ##??????? | | # ???????????## #?# #??????? | | ??????????## ### #???????? | | ?????????# ## #????????? | | ?????????# ## ##????????? | | ?# #####????# #### ##?????????? | | ??# ##??## ##?###+#??????????? | | ???# #### ##### #??????????? | | ???# ## #??????????? | | ????# #??????????? | | ??????## ## #####??????????? | | ???????## ##### #??????????????? | | ??####??## ####???# #??????????????? | | ?## #???# ####?????##+#??????????????? | | ## #???# #?????#### ##?????????????? | +----------------------------------------------------+ Best States ------------- Heat Dissipation 25 Energy Generation 14 Energy Capacity 1660 Matter Stores 300 Matter Capacity 300 Sight Range 16 Terrain Scan Density 10 ECM Strength 2 Core Shielding 20 Evasion (%) 40 Recoil Reduction 2 Item Schematics ----------------- None Robot Schematics ------------------ None Fabricated ------------ Nothing Alien Tech Used ----------------- None Achievements -------------- None Challenges ------------ None Game ------ Seed SmartbombThermoelectricRay Manual? 0 Play Time 00:14:32 Cumulative 23.4 hours Start 2024.03.31 @ 23:33:59 End 2024.03.31 @ 23:48:35 Sessions 1 Manual Loads 0 Difficulty Rogue Special Mode None Game No. 49 Rogue 46 Adventurer 0 Explorer 3 Win Type - Total 0 Types 0/0/0/0/0/0/0/0/0 Lore% 21 Gallery% 30 Achievement% 24 Wizard Run 0 Options --------- Layout 0 ASCII 0 Keyboard 0 Movement Mouse Keybinds 0 Fullscreen 2 Font 18/SmallcapsGlow Map View 76x50 Zoom Use 0% Tactical HUD 0 Map Filters NONE Filters NONE Steam 1 RUN: bc067c9e-759d-47a9-a60b-9a74ed9c1acc